fUST/lending_fUST_20250925
["ID","MTS","AMOUNT","RATE_DAILY","PERIOD"]
[387645563,1758796241770,-575.55950337,0.00019347,2]
[387645564,1758796241779,-481.44506118,0.00019347,2]
[387645565,1758796241789,-480.0,0.00019347,2]
[387645566,1758796241798,-480.0,0.00019347,2]
[387645567,1758796241808,-480.0,0.00019347,2]
[387645568,1758796241817,-480.0,0.00019347,2]
[387645569,1758796241826,-480.0,0.00019347,2]
[387645570,1758796241835,-480.0,0.00019347,2]
[387645571,1758796241845,-480.0,0.00019347,2]
[387645572,1758796241854,-480.0,0.00019347,2]
[387645573,1758796241863,-500.0,0.00019347,2]
[387645574,1758796241873,-500.0,0.00019347,2]
[387645575,1758796241882,-480.0,0.00019347,2]
[387645576,1758796241891,-480.0,0.00019347,2]
[387645577,1758796241900,-480.0,0.00019347,2]
[387645578,1758796241909,-480.0,0.00019347,2]
[387645579,1758796241918,-480.0,0.00019347,2]
[387645580,1758796241927,-480.0,0.00019347,2]
[387645581,1758796241936,-480.0,0.00019347,2]
[387645582,1758796241946,-480.0,0.00019347,2]
[387645583,1758796241956,-484.72745538,0.00019347,2]
[387645584,1758796241965,-480.0,0.00019347,2]
[387645585,1758796241975,-3076.22,0.00019347,2]
[387645586,1758796241984,-480.0,0.00019347,2]
[387645587,1758796241993,-480.0,0.00019347,2]
[387645588,1758796242002,-480.0,0.00019347,2]
[387645589,1758796242012,-480.0,0.00019347,2]
[387645590,1758796242021,-480.0,0.00019347,2]
[387645591,1758796242031,-480.0,0.00019347,2]
[387645592,1758796242040,-480.0,0.00019347,2]
[387645593,1758796242050,-480.0,0.00019347,2]
[387645594,1758796242059,-480.0,0.00019347,2]
[387645595,1758796242069,-480.0,0.00019347,2]
[387645596,1758796242078,-480.0,0.00019347,2]
[387645597,1758796242087,-480.0,0.00019347,2]
[387645598,1758796242097,-480.0,0.00019347,2]
[387645599,1758796242106,-480.0,0.00019347,2]
[387645600,1758796242115,-480.0,0.00019347,2]
[387645601,1758796242126,-480.0,0.00019347,2]
[387645602,1758796242140,-480.0,0.00019347,2]
[387645603,1758796242149,-485.44488684,0.00019347,2]
[387645604,1758796242158,-513.22,0.00019347,2]
[387645605,1758796242168,-482.6898792,0.00019347,2]
[387645606,1758796242178,-480.0,0.00019347,2]
[387645607,1758796242187,-480.0,0.00019347,2]
[387645608,1758796242197,-421.83794177,0.00019347,2]
[387645609,1758796242206,-480.0,0.00019347,2]
[387645610,1758796242217,-480.0,0.00019347,2]
[387645611,1758796242227,-480.0,0.00019347,2]
[387645612,1758796242237,-480.0,0.00019347,2]
[387645613,1758796242247,-480.0,0.00019347,2]
[387645614,1758796242260,-480.0,0.00019347,2]
[387645615,1758796242270,-480.0,0.00019347,2]
[387645616,1758796242279,-480.0,0.00019347,2]
[387645617,1758796242291,-480.0,0.00019347,2]
[387645618,1758796242301,-480.0,0.00019347,2]
[387645619,1758796242310,-480.0,0.00019347,2]
[387645620,1758796242319,-480.0,0.00019347,2]
[387645621,1758796242329,-480.0,0.00019347,2]
[387645622,1758796242339,-480.0,0.00019347,2]
[387645623,1758796242348,-500.0,0.00019348,2]
[387645624,1758796242357,-500.0,0.00019348,2]
[387645625,1758796242368,-513.22,0.00019348,2]
[387645626,1758796242378,-497.68761292,0.00019348,2]
[387645627,1758796242388,-480.0,0.00019348,2]
[387645628,1758796242398,-480.0,0.00019348,2]
[387645629,1758796242407,-481.24462171,0.00019349,2]
[387645630,1758796242416,-480.0,0.00019349,2]
[387645631,1758796242425,-435.14850304,0.00019349,2]
[387645632,1758796242435,-480.0,0.00019349,2]
[387645633,1758796242444,-200.0,0.00019349,2]
[387645634,1758796242453,-480.0,0.00019349,2]
[387645635,1758796242533,-480.0,0.00019349,2]
[387645636,1758796242543,-480.0,0.00019349,2]
[387645637,1758796242553,-480.0,0.00019349,2]
[387645638,1758796242562,-480.0,0.00019349,2]
[387645639,1758796242572,-500.0,0.00019349,2]
[387645640,1758796242581,-480.0,0.00019349,2]
[387645641,1758796242591,-480.0,0.00019349,2]
[387645642,1758796242600,-480.0,0.00019349,2]
[387645643,1758796242609,-481.42113877,0.00019349,2]
[387645644,1758796242618,-480.0,0.00019349,2]
[387645645,1758796242628,-382.46674284,0.00019349,2]
[387645646,1758796242637,-480.0,0.00019349,2]
[387645647,1758796242646,-480.0,0.00019349,2]
[387645648,1758796242656,-480.0,0.00019349,2]
[387645649,1758796242665,-480.72543893,0.00019349,2]
[387645650,1758796242675,-480.0,0.00019349,2]
[387645651,1758796242687,-513.22,0.00019349,2]
[387645652,1758796242696,-500.0,0.00019351,2]
[387645654,1758796242705,-500.0,0.00019351,2]
[387645655,1758796242715,-500.0,0.00019351,2]
[387645657,1758796242725,-500.0,0.00019351,2]
[387645658,1758796242735,-452.39991463,0.00019351,2]
[387645660,1758796242744,-1000.0,0.00019351,2]
[387645661,1758796242753,-1000.0,0.00019351,2]
[387645662,1758796242762,-1000.0,0.00019351,2]
[387645663,1758796242772,-1000.0,0.00019351,2]
[387645664,1758796242781,-1000.0,0.00019351,2]
[387645665,1758796242790,-1000.0,0.00019351,2]
[387645666,1758796242800,-1000.0,0.00019351,2]
[387645667,1758796242809,-1000.0,0.00019351,2]
[387645669,1758796242818,-1000.0,0.00019351,2]
[387645670,1758796242828,-1000.0,0.00019351,2]
[387645671,1758796242837,-1000.0,0.00019351,2]
[387645672,1758796242847,-1000.0,0.00019351,2]
[387645673,1758796242856,-1000.0,0.00019351,2]
[387645674,1758796242866,-1000.0,0.00019351,2]
[387645675,1758796242875,-1000.0,0.00019351,2]
[387645676,1758796242884,-1000.0,0.00019351,2]
[387645677,1758796242893,-243.21952904,0.00019351,2]
[387645678,1758796242902,-513.22,0.00019351,2]
[387645679,1758796242912,-513.22,0.00019351,2]
[387645680,1758796242922,-513.22,0.00019351,2]
[387645681,1758796242931,-513.22,0.00019351,2]
[387645682,1758796242941,-513.22,0.00019351,2]
[387645683,1758796242951,-513.22,0.00019351,2]
[387645684,1758796242960,-513.22,0.00019351,2]
[387645685,1758796242970,-513.22,0.00019351,2]
[387645686,1758796242980,-513.22,0.00019351,2]
[387645687,1758796242989,-513.22,0.00019351,2]
[387645688,1758796242999,-513.22,0.00019351,2]
[387645689,1758796243009,-513.22,0.00019351,2]
[387645690,1758796243018,-513.22,0.00019351,2]
[387645691,1758796243028,-513.22,0.00019351,2]
[387645692,1758796243037,-513.22,0.00019351,2]
[387645693,1758796243047,-513.22,0.00019351,2]
[387645694,1758796243056,-513.30191932,0.00019351,2]
[387645695,1758796243065,-370000.0,0.00019352,2]
[387645696,1758796243075,-500.0,0.00019352,2]
[387645697,1758796243085,-500.35722853,0.00019373,2]
[387645698,1758796243096,-500.0,0.00019373,2]
[387645699,1758796243105,-486.38902683,0.00019617,2]
[387645700,1758796243115,-557.96993494,0.00019617,2]
[387645701,1758796243124,-483.63601485,0.00019617,2]
[387645702,1758796243135,-482.50641503,0.00019617,2]
[387645703,1758796243144,-485.6532839,0.00019617,2]
[387645704,1758796243154,-480.0,0.00019617,2]
[387645705,1758796243163,-485.23436916,0.00019617,2]
[387645706,1758796243173,-480.0,0.00019617,2]
[387645707,1758796243183,-480.0,0.00019617,2]
[387645708,1758796243193,-480.0,0.00019617,2]
[387645709,1758796243203,-480.0,0.00019617,2]
[387645710,1758796243212,-480.0,0.00019617,2]
[387645711,1758796243222,-480.0,0.00019617,2]
[387645712,1758796243233,-480.0,0.00019617,2]
[387645713,1758796243243,-480.0,0.00019617,2]
[387645714,1758796243252,-480.0,0.00019617,2]
[387645715,1758796243261,-480.0,0.00019617,2]
[387645716,1758796243271,-480.0,0.00019617,2]
[387645717,1758796243280,-480.0,0.00019617,2]
[387645718,1758796243293,-480.0,0.00019617,2]
[387645719,1758796243303,-480.0,0.00019617,2]
[387645720,1758796243313,-480.0,0.00019617,2]
[387645721,1758796243323,-480.0,0.00019617,2]
[387645722,1758796243332,-480.0,0.00019617,2]
[387645723,1758796243342,-480.0,0.00019617,2]
[387645724,1758796243351,-480.0,0.00019617,2]
[387645725,1758796243361,-480.0,0.00019617,2]
[387645726,1758796243370,-480.0,0.00019617,2]
[387645727,1758796243380,-489.00543559,0.00019617,2]
[387645728,1758796243389,-480.0,0.00019617,2]
[387645729,1758796243398,-480.0,0.00019618,2]
[387645730,1758796243407,-480.0,0.00019619,2]
[387645731,1758796243417,-480.0,0.00019619,2]
[387645732,1758796243427,-483.09989165,0.00019619,2]
[387645733,1758796243438,-480.0,0.00019619,2]
[387645734,1758796243447,-480.0,0.00019619,2]
[387645735,1758796243457,-480.0,0.00019619,2]
[387645736,1758796243467,-480.0,0.00019619,2]
[387645737,1758796243476,-480.0,0.00019619,2]
[387645738,1758796243486,-480.0,0.00019619,2]
[387645739,1758796243495,-480.0,0.00019619,2]
[387645740,1758796243505,-516.04943425,0.00019619,2]
[387645741,1758796243514,-480.0,0.00019619,2]
[387645742,1758796243524,-480.0,0.00019619,2]
[387645743,1758796243533,-480.0,0.00019619,2]
[387645744,1758796243543,-480.0,0.00019619,2]
[387645745,1758796243552,-480.0,0.00019619,2]
[387645746,1758796243562,-480.0,0.00019619,2]
[387645747,1758796243571,-480.0,0.00019619,2]
[387645748,1758796243580,-480.0,0.00019619,2]
[387645749,1758796243590,-480.0,0.00019619,2]
[387645750,1758796243599,-480.0,0.00019619,2]
[387645751,1758796243608,-480.0,0.00019619,2]
[387645752,1758796243618,-480.0,0.00019619,2]
[387645753,1758796243627,-532.33934526,0.00019619,2]
[387645754,1758796243637,-480.0,0.00019619,2]
[387645755,1758796243646,-480.0,0.00019619,2]
[387645756,1758796243655,-480.0,0.00019619,2]
[387645757,1758796243664,-500.0,0.00019619,2]
[387645758,1758796243674,-480.0,0.00019619,2]
[387645759,1758796243683,-480.0,0.00019619,2]
[387645760,1758796243692,-480.0,0.00019619,2]
[387645761,1758796243702,-480.0,0.00019619,2]
[387645762,1758796243711,-480.0,0.00019619,2]
[387645763,1758796243721,-480.0,0.00019619,2]
[387645764,1758796243731,-480.0,0.00019619,2]
[387645765,1758796243740,-479.99561426,0.00019619,2]
[387645766,1758796243750,-480.0,0.00019619,2]
[387645767,1758796243760,-480.0,0.00019619,2]
[387645768,1758796243769,-480.0,0.00019619,2]
[387645769,1758796243779,-480.0,0.00019619,2]
[387645770,1758796243788,-536.43652403,0.00019619,2]
[387645771,1758796243798,-480.0,0.00019619,2]
[387645772,1758796243808,-480.0,0.00019619,2]
[387645773,1758796243817,-480.0,0.00019619,2]
[387645774,1758796243827,-480.0,0.00019619,2]
[387645775,1758796243837,-480.0,0.00019619,2]
[387645776,1758796243846,-480.0,0.00019619,2]
[387645777,1758796243855,-480.0,0.00019619,2]
[387645778,1758796243864,-480.0,0.00019619,2]
[387645779,1758796243873,-501.10142074,0.00019619,2]
[387645780,1758796243882,-480.0,0.00019619,2]
[387645781,1758796243891,-480.0,0.00019619,2]
[387645782,1758796243900,-480.0,0.00019619,2]
[387645783,1758796243909,-480.0,0.00019619,2]
[387645784,1758796243918,-480.0,0.00019619,2]
[387645785,1758796243928,-480.0,0.00019619,2]
[387645786,1758796243938,-236.44456017,0.0001962,2]
[387645787,1758796243947,-576.83199982,0.0001962,2]
[387645788,1758796243956,-480.0,0.0001962,2]
[387645789,1758796243965,-480.0,0.0001962,2]
[387645790,1758796243974,-470.75255859,0.0001962,2]
[387645791,1758796243984,-480.0,0.0001962,2]
[387645792,1758796243993,-480.0,0.0001962,2]
[387645793,1758796244002,-480.0,0.0001962,2]
[387645794,1758796244011,-480.0,0.0001962,2]
[387645795,1758796244020,-480.0,0.0001962,2]
[387645796,1758796244029,-487.53045418,0.0001962,2]
[387645797,1758796244038,-509.62234585,0.0001962,2]
[387645798,1758796244142,-480.0,0.0001962,2]
[387645799,1758796244152,-480.0,0.0001962,2]
[387645800,1758796244162,-480.0,0.0001962,2]
[387645801,1758796244172,-156.89805978,0.0001962,2]
[387645802,1758796244182,-480.0,0.0001962,2]
[387645803,1758796244192,-480.0,0.0001962,2]
[387645804,1758796244201,-491.72890253,0.0001962,2]
[387645805,1758796244211,-480.0,0.0001962,2]
[387645806,1758796244221,-484.20786749,0.0001962,2]
[387645807,1758796244231,-480.0,0.0001962,2]
[387645808,1758796244241,-480.0,0.0001962,2]
[387645809,1758796244251,-480.0,0.0001962,2]
[387645810,1758796244260,-480.0,0.0001962,2]
[387645811,1758796244270,-480.0,0.0001962,2]
[387645812,1758796244280,-200.03261799,0.0001962,2]
[387645814,1758796244292,-480.0,0.0001962,2]
[387645815,1758796244302,-480.0,0.0001962,2]
[387645817,1758796244311,-477.58968848,0.0001962,2]
[387645818,1758796244321,-480.0,0.0001962,2]
[387645819,1758796244331,-480.0,0.0001962,2]
[387645820,1758796244341,-480.0,0.0001962,2]
[387645821,1758796244351,-480.0,0.0001962,2]
[387645822,1758796244361,-480.0,0.0001962,2]
[387645823,1758796244370,-480.0,0.0001962,2]
[387645824,1758796244379,-480.0,0.0001962,2]
[387645825,1758796244388,-480.0,0.0001962,2]
[387645826,1758796244398,-303.54491338,0.0001962,2]
[387645827,1758796244407,-480.0,0.0001962,2]
[387645829,1758796244416,-480.0,0.0001962,2]
[387645830,1758796244426,-277.77,0.0001962,2]
[387645831,1758796244435,-480.0,0.0001962,2]
[387645832,1758796244445,-480.0,0.0001962,2]
[387645834,1758796244455,-480.0,0.0001962,2]
[387645836,1758796244464,-483.19041764,0.00019621,2]
[387645838,1758796244474,-484.57,0.00019621,2]
[387645840,1758796244483,-624.83,0.00019621,2]
[387645842,1758796244493,-480.0,0.00019621,2]
[387645844,1758796244502,-480.0,0.00019621,2]
[387645846,1758796244512,-480.0,0.00019621,2]
[387645848,1758796244521,-556.80801268,0.00019621,2]
[387645850,1758796244530,-480.0,0.00019621,2]
[387645852,1758796244540,-428.63170102,0.00019621,2]
[387645854,1758796244550,-152.47162898,0.00019621,2]
[387645856,1758796244559,-480.0,0.00019621,2]
[387645858,1758796244569,-480.0,0.00019621,2]
[387645860,1758796244579,-480.0,0.00019621,2]
[387645862,1758796244589,-480.0,0.00019621,2]
[387645864,1758796244598,-3076.22,0.00019621,2]
[387645866,1758796244608,-480.0,0.00019621,2]
[387645868,1758796244618,-480.0,0.00019621,2]
[387645870,1758796244627,-480.0,0.00019621,2]
[387645872,1758796244636,-480.0,0.00019621,2]
[387645874,1758796244646,-480.0,0.00019621,2]
[387645876,1758796244655,-480.0,0.00019621,2]
[387645878,1758796244665,-480.0,0.00019621,2]
[387645880,1758796244674,-480.0,0.00019621,2]
[387645882,1758796244684,-480.0,0.00019621,2]
[387645884,1758796244693,-480.0,0.00019621,2]
[387645886,1758796244702,-628.85986841,0.00019621,2]
[387645888,1758796244711,-480.0,0.00019621,2]
[387645890,1758796244722,-358.72600664,0.00019621,2]
[387645892,1758796244732,-480.0,0.00019621,2]
[387645895,1758796244742,-480.0,0.00019621,2]
[387645896,1758796244751,-252.3971773,0.00019621,2]
[387645899,1758796244761,-480.0,0.00019621,2]
[387645901,1758796244770,-480.0,0.00019621,2]
[387645903,1758796244780,-480.0,0.00019622,2]
[387645905,1758796244789,-406.27279815,0.00019623,2]
[387645907,1758796244799,-486.28088052,0.00019623,2]
[387645909,1758796244808,-574.11963063,0.00019623,2]
[387645911,1758796244818,-480.0,0.00019623,2]
[387645913,1758796244827,-486.81246197,0.00019623,2]
[387645915,1758796244837,-488.77328849,0.00019623,2]
[387645917,1758796244846,-484.0659597,0.00019623,2]
[387645919,1758796244855,-480.0,0.00019623,2]
[387645921,1758796244864,-480.0,0.00019623,2]
[387645923,1758796244873,-479.99,0.00019626,2]
[387645925,1758796244893,-500.0,0.00019673,2]
[387645927,1758796244902,-401.32451344,0.00019822,2]
[387645929,1758796244912,-480.0,0.00019891,2]
[387645931,1758796244921,-480.0,0.00019891,2]
[387645933,1758796244931,-480.0,0.00019891,2]
[387645935,1758796244940,-266.6714657,0.00019891,2]
[387645937,1758796244950,-219.36,0.00019891,2]
[387645939,1758796244959,-153.61,0.00019891,2]
[387645941,1758796244968,-480.0,0.00019891,2]
[387645943,1758796244978,-211.42827909,0.00019891,2]
[387645945,1758796244988,-537.12080077,0.00019891,2]
[387645947,1758796245000,-493.41002964,0.00019891,2]
[387645949,1758796245010,-480.0,0.00019893,2]
[387645951,1758796245019,-480.0,0.00019893,2]
[387645953,1758796245029,-480.0,0.00019893,2]
[387645955,1758796245038,-480.0,0.00019893,2]
[387645957,1758796245048,-480.0,0.00019893,2]
[387645959,1758796245057,-480.0,0.00019893,2]
[387645961,1758796245066,-558.61,0.00019893,2]
[387645963,1758796245075,-174.76,0.00019893,2]
[387645965,1758796245084,-480.0,0.00019893,2]
[387645967,1758796245093,-480.0,0.00019894,2]
[387645969,1758796245103,-480.0,0.00019894,2]
[387645971,1758796245112,-480.0,0.00019894,2]
[387645973,1758796245121,-474.92346152,0.00019894,2]
[387645975,1758796245130,-480.0,0.00019894,2]
[387645977,1758796245139,-480.0,0.00019894,2]
[387645979,1758796245148,-480.0,0.00019894,2]
[387645981,1758796245158,-480.0,0.00019894,2]
[387645983,1758796245167,-480.0,0.00019894,2]
[387645984,1758796245179,-480.0,0.00019894,2]
[387645986,1758796245188,-480.0,0.00019894,2]
[387645988,1758796245196,-480.0,0.00019895,2]
[387645990,1758796245206,-480.0,0.00019895,2]
[387645992,1758796245214,-3076.22,0.00019895,2]
[387645994,1758796245224,-480.0,0.00019895,2]
[387645996,1758796245234,-480.0,0.00019896,2]
[387646001,1758796245243,-738.62660353,0.000199,2]
[387646003,1758796245253,-500.0,0.00019973,2]
[387646005,1758796245262,-500.0,0.00019973,2]
[387646007,1758796245271,-238.57457338,0.00019973,2]
[387646008,1758796245280,-504.83976007,0.00019973,2]
[387646010,1758796245292,-100000.0,0.0001999,2]
[387646012,1758796245302,-480.0,0.00020165,2]
[387646014,1758796245311,-319.12,0.00020165,2]
[387646016,1758796245320,-490.15,0.00020165,2]
[387646019,1758796245331,-252.12089026,0.00020165,2]
[387646020,1758796245340,-480.0,0.00020167,2]
[387646022,1758796245349,-480.0,0.00020167,2]
[387646024,1758796245359,-203.93,0.00020167,2]
[387646027,1758796245372,-480.0,0.00020167,2]
[387646029,1758796245381,-480.0,0.00020168,2]
[387646031,1758796245391,-480.0,0.00020168,2]
[387646033,1758796245400,-480.0,0.00020168,2]
[387646035,1758796245409,-480.0,0.00020169,2]
[387646037,1758796245419,-3076.22,0.00020169,2]
[387646039,1758796245428,-480.0,0.00020169,2]
[387646041,1758796245437,-246.55,0.00020439,2]
[387646043,1758796245446,-480.0,0.00020441,2]
[387646045,1758796245455,-480.0,0.00020441,2]
[387646047,1758796245464,-480.0,0.00020442,2]
[387646048,1758796245474,-480.0,0.00020442,2]
[387646051,1758796245485,-480.0,0.00020442,2]
[387646053,1758796245494,-248.48,0.00020443,2]
[387646055,1758796245503,-3076.22,0.00020443,2]
[387646057,1758796245512,-480.0,0.00020443,2]
[387646059,1758796245522,-1000.0,0.00020521,2]
[387646061,1758796245531,-1000.0,0.00020521,2]
[387646070,1758796245541,-213.49417476,0.00020564,2]
[387646072,1758796245617,-10205.12479533,0.00020627,3]
[387646074,1758796245627,-417.15472785,0.00020627,3]
[387646076,1758796245636,-1117.36,0.00020707,3]
[387646078,1758796245645,-558.68,0.00020707,3]
[387646080,1758796245654,-480.0,0.00020715,2]
[387646082,1758796245664,-480.0,0.00020716,2]
[387646084,1758796245679,-480.0,0.00020716,2]
[387646086,1758796245688,-3076.22,0.00020717,2]
[387646088,1758796245698,-480.0,0.00020717,2]
[387646090,1758796245707,-150.0,0.0002083,2]
[387646092,1758796245716,-738.62660331,0.00020972,2]
[387646094,1758796245725,-480.0,0.00020989,2]
[387646096,1758796245735,-480.0,0.0002099,2]
[387646098,1758796245744,-480.0,0.0002099,2]
[387646101,1758796245753,-3076.22,0.00020991,2]
[387646104,1758796245762,-276.26,0.00020991,2]
[387646107,1758796245772,-195.915342,0.00021,5]
[387646110,1758796245781,-688.67808718,0.00021,10]
[387646113,1758796245792,-1500.0,0.00021068,2]
[387646117,1758796245808,-1000.0,0.00021068,2]
[387646120,1758796245818,-336.86187909,0.00021263,2]
[387646122,1758796245827,-480.0,0.00021264,2]
[387646125,1758796245837,-480.0,0.00021264,2]
[387646128,1758796245847,-3076.22,0.00021265,2]
[387646131,1758796245857,-480.0,0.00021538,2]
[387646134,1758796245866,-480.0,0.00021538,2]
[387646137,1758796245875,-3076.22,0.00021539,2]
[387646139,1758796245884,-2000.0,0.00021616,2]
[387646141,1758796245894,-480.0,0.00021812,2]
[387646143,1758796245903,-480.0,0.00021812,2]
[387646146,1758796245913,-3076.22,0.00021813,2]
[387646147,1758796245924,-213.49417476,0.00021882,2]
[387646149,1758796245933,-150.0,0.00021918,2]
[387646151,1758796245942,-738.62660331,0.00022044,2]
[387646153,1758796245951,-417.15472785,0.00022069,2]
[387646155,1758796245961,-233.66602051,0.00022071,2]
[387646157,1758796245969,-160.0,0.00022071,2]
[387646159,1758796245980,-480.0,0.00022086,2]
[387646161,1758796245989,-480.0,0.00022086,2]
[387646163,1758796245999,-3076.22,0.00022087,2]
[387646166,1758796246008,-677.47,0.000221,2]
[387646168,1758796246018,-161.0,0.00022164,6]
[387646170,1758796246027,-2517.18989171,0.00022164,2]
[387646173,1758796246037,-480.0,0.0002236,2]
[387646175,1758796246046,-480.0,0.0002236,2]
[387646176,1758796246056,-3076.22,0.00022361,2]
[387646178,1758796246065,-1871.07860092,0.00022405,2]
[387646180,1758796246075,-300.0,0.00022466,2]
[387646182,1758796246084,-500.0,0.00022555,2]
[387646184,1758796246093,-500.0,0.00022555,2]
[387646186,1758796246102,-500.0,0.00022555,2]
[387646188,1758796246112,-500.0,0.00022555,2]
[387646190,1758796246122,-460.90661814,0.00022555,2]
[387646192,1758796246131,-480.0,0.00022634,2]
[387646194,1758796246141,-480.0,0.00022634,2]
[387646196,1758796246151,-3076.22,0.00022635,2]
[387646199,1758796246160,-150.0,0.00022724,2]
[387646201,1758796246169,-352.53528934,0.00022886,2]
[387646203,1758796246179,-480.0,0.00022908,2]
[387646205,1758796246188,-480.0,0.00022908,2]
[387646207,1758796246198,-3076.22,0.00022909,2]
[387646209,1758796246207,-10091.79847545,0.00022998,2]
[387646211,1758796246217,-151.0,0.00022998,7]
[387646213,1758796246226,-151.0,0.00022998,7]
[387646215,1758796246238,-1143.262227,0.00022998,7]
[387646217,1758796246247,-151.0,0.00022998,7]
[387646219,1758796246256,-216.269529,0.00022998,7]
[387646221,1758796246265,-1143.262227,0.00022998,7]
[387646223,1758796246281,-151.0,0.00022998,7]
[387646226,1758796246299,-1143.262227,0.00022998,7]
[387646228,1758796246311,-216.269529,0.00022998,7]
[387646231,1758796246325,-1143.262227,0.00022998,7]
[387646233,1758796246339,-151.0,0.00022998,7]
[387646236,1758796246355,-216.269529,0.00022998,7]
[387646238,1758796246367,-216.269529,0.00022998,7]
[387646241,1758796246383,-151.0,0.00022998,7]
[387646243,1758796246397,-151.0,0.00022998,7]
[387646246,1758796246411,-151.0,0.00022998,7]
[387646248,1758796246423,-151.0,0.00022998,7]
[387646251,1758796246438,-191.037958,0.00022998,7]
[387646253,1758796246451,-151.0,0.00022998,7]
[387646255,1758796246462,-151.0,0.00022998,7]
[387646258,1758796246474,-335.093257,0.00022998,7]
[387646260,1758796246490,-335.093257,0.00022998,7]
[387646263,1758796246503,-156.270192,0.00022998,7]
[387646265,1758796246517,-335.093257,0.00022998,7]
[387646267,1758796246532,-156.270192,0.00022998,7]
[387646269,1758796246549,-335.093257,0.00022998,7]
[387646271,1758796246561,-351.222538,0.00022998,7]
[387646274,1758796246572,-156.270192,0.00022998,7]
[387646276,1758796246584,-151.0,0.00022998,7]
[387646279,1758796246600,-351.222538,0.00022998,7]
[387646281,1758796246613,-156.270192,0.00022998,7]
[387646283,1758796246624,-351.222538,0.00022998,7]
[387646286,1758796246638,-351.222538,0.00022998,7]
[387646288,1758796246650,-175.743956,0.00022998,7]
[387646290,1758796246661,-175.743956,0.00022998,7]
[387646292,1758796246673,-151.0,0.00022998,7]
[387646295,1758796246686,-175.743956,0.00022998,7]
[387646297,1758796246698,-197.051142,0.00022998,7]
[387646299,1758796246711,-175.743956,0.00022998,7]
[387646301,1758796246722,-197.051142,0.00022998,7]
[387646304,1758796246736,-151.0,0.00022998,7]
[387646306,1758796246750,-156377.05460505,0.00023,2]
[387646308,1758796246764,-151.0,0.00023,7]
[387646311,1758796246776,-152.625112,0.00023,7]
[387646313,1758796246788,-374.66184,0.00023,7]
[387646315,1758796246800,-152.625112,0.00023,7]
[387646317,1758796246812,-2803.88557255,0.00023,2]
[387646320,1758796246823,-374.66184,0.00023,7]
[387646322,1758796246835,-151.0,0.00023,7]
[387646324,1758796246847,-152.625112,0.00023,7]
[387646326,1758796246859,-374.66184,0.00023,7]
[387646329,1758796246872,-151.0,0.00023,7]
[387646331,1758796246884,-152.625112,0.00023,7]
[387646333,1758796246898,-374.66184,0.00023,7]
[387646336,1758796246910,-151.0,0.00023,7]
[387646338,1758796246924,-151.0,0.00023,7]
[387646340,1758796246936,-151.0,0.00023,7]
[387646343,1758796246948,-151.0,0.00023,7]
[387646345,1758796246960,-155.907333,0.00023,7]
[387646347,1758796246972,-151.0,0.00023,7]
[387646349,1758796246984,-151.0,0.00023,7]